{"text_format":"1","workbook":"xlsx","n_sheets":7,"sheets":["申請書","別添","職員表","申請書 (記載例)","別添 (記載例)","職員表 (記載例)","計算用"],"not_rendered":{"charts":0,"images":0,"macros":1,"external_links":2,"defined_names":8,"comments":2,"pivot_tables":0},"unopened":[],"bounds":{"document_bytes":16777216,"sheet_cells":100000,"rows_first":2000,"rows_last":500,"rows_between":2000,"halvings":0,"cell_chars":16384,"cell_head_chars":4096},"cells_cut":0,"cells_raw":0,"read":"whole","date_system":"1900"}

{"sheet":"申請書","index":0,"n_rows":51,"n_cols":39,"rows_kept":51,"cut":false,"hidden":false,"merged":[[42,34,43,37],[41,2,41,14],[49,28,49,37],[40,19,41,30],[31,19,32,29],[38,28,38,37],[37,28,37,37],[36,28,36,37],[35,28,35,37],[34,28,34,37],[33,29,33,37],[42,28,43,33],[35,20,35,26],[36,20,36,26],[37,20,38,22],[38,24,38,27],[20,4,20,12],[21,4,21,12],[23,4,23,12],[20,13,20,19],[20,20,20,26],[21,13,21,19],[22,4,22,12],[18,27,18,33],[19,13,19,19],[19,20,19,26],[19,27,19,33],[37,24,37,27],[23,13,23,19],[23,20,23,26],[23,27,23,33],[21,20,21,26],[21,27,21,33],[22,13,22,19],[22,20,22,26],[22,27,22,33],[33,20,34,27],[20,27,20,33],[17,4,17,22],[15,1,15,9],[15,10,15,17],[19,4,19,12],[18,4,18,12],[18,13,18,19],[18,20,18,26],[4,0,4,9],[6,22,6,36],[12,1,12,37],[10,0,10,38],[2,35,2,36],[2,32,2,33],[2,29,2,30],[7,22,7,36],[8,22,8,36],[42,2,50,14],[44,20,44,27],[44,28,44,37],[45,20,45,26],[45,28,45,33],[45,34,45,37],[46,20,46,27],[46,28,46,37],[47,28,47,33],[47,34,47,37],[48,20,48,26],[49,20,49,27],[50,28,50,37],[47,20,47,26],[48,28,48,37],[42,20,43,27]]}
[null,null,null,null,null,null,null,null,null,null,null,null,null,null,null,null,null,null,null,null,null,null,null,null,null,null,null,null,null,null,null,null,null,null,null,null,null,null,"（様式１３）"]
[]
[null,null,null,null,null,null,null,null,null,null,null,null,null,null,null,null,null,null,null,null,null,null,null,null,null,null,null,null,"　　令和",null,null,"年",null,null,"月",null,null,"日"]
[]
["福井県知事　杉本　達治",null,null,null,null,null,null,null,null,null,"様"]
[]
[null,null,null,null,null,null,null,null,null,null,null,null,null,null,null,null,null,null,null,null,null,"（所在地）"]
[null,null,null,null,null,null,null,null,null,null,null,null,null,null,null,null,null,null,null,null,null,"（法人名）"]
[null,null,null,null,null,null,null,null,null,null,null,null,null,null,null,null,null,null,null,null,null,"（役職・代表者名）",null,null,null,null,null,null,null,null,null,null,null,null,null,null,null,"印"]
[]
["令和２年度福井県新型コロナウイルス感染症緊急包括支援事業補助金\n（児童福祉施設等従事者への慰労金支給事業）変更交付申請書"]
[]
[null,"　令和　年　月　日付け福井県指令　第　　　号で交付決定を受けた令和２年度福井県新型コロナウイルス感染症緊急包括支援事業（児童福祉施設等従事者への慰労金支給事業）について、下記のとおり変更したいので、関係書類を添えて申請します。"]
[]
[]
[null,"　　変更後申請額　：　",null,null,null,null,null,null,null,null,{"$f":"別添!K15","v":0},null,null,null,null,null,null,null,"円"]
[]
[null,"（内訳）"]
[null,null,null,null,null,null,null,null,null,null,null,null,null,"変更前(A)",null,null,null,null,null,null,"変更後(B)",null,null,null,null,null,null,"(B)-(A)"]
[null,null,null,null,"対象者のうち、現職者数",null,null,null,null,null,null,null,null,null,null,null,null,null,null,null,{"$f":"別添!F15","v":0},null,null,null,null,null,null,{"$f":"U20-N20","v":0}]
[null,null,null,null,"対象者のうち、退職者数",null,null,null,null,null,null,null,null,null,null,null,null,null,null,null,{"$f":"別添!G15","v":0},null,null,null,null,null,null,{"$f":"U21-N21","v":0}]
[null,null,null,null,"対象者合計",null,null,null,null,null,null,null,null,null,null,null,null,null,null,null,{"$f":"別添!H15","v":0},null,null,null,null,null,null,0]
[null,null,null,null,"支給額合計",null,null,null,null,null,null,null,null,null,null,null,null,null,null,null,{"$f":"別添!I15","v":0},null,null,null,null,null,null,0]
[null,null,null,null,"口座振り込み手数料",null,null,null,null,null,null,null,null,null,null,null,null,null,null,null,{"$f":"別添!J15","v":0},null,null,null,null,null,null,0]
[]
[null,"（添付書類）"]
[null,"１　（様式１４）事業所・施設別変更申請額一覧"]
[null,"２　（様式１５）慰労金受給職員表（変更申請用）"]
[null,"３　（様式４）誓約書（法人単位）"]
[]
[]
[null,null,null,null,null,null,null,null,null,null,null,null,null,null,null,null,null,null,null,"【申請内容に関する連絡先】"]
[]
[null,null,null,null,null,null,null,null,null,null,null,null,null,null,null,null,null,null,null,null," 申請法人住所",null,null,null,null,null,null,null,"〒"]
[]
[null,null,null,null,null,null,null,null,null,null,null,null,null,null,null,null,null,null,null,null," 部署名"]
[null,null,null,null,null,null,null,null,null,null,null,null,null,null,null,null,null,null,null,null," 担当者氏名"]
[null,null,null,null,null,null,null,null,null,null,null,null,null,null,null,null,null,null,null,null," 連絡先",null,null,null,"電話番号"]
[null,null,null,null,null,null,null,null,null,null,null,null,null,null,null,null,null,null,null,null,null,null,null,null,"e-mail"]
[]
[null,null,null,null,null,null,null,null,null,null,null,null,null,null,null,null,null,null,null,"【振込先金融機関口座記入欄】"]
[null,null,"受付欄（記入不要）"]
[null,null,null,null,null,null,null,null,null,null,null,null,null,null,null,null,null,null,null,null,"金融機関名",null,null,null,null,null,null,null,null,null,null,null,null,null,"銀行・金庫・\n組合・農協・\n漁連"]
[]
[null,null,null,null,null,null,null,null,null,null,null,null,null,null,null,null,null,null,null,null,"金融機関コード"]
[null,null,null,null,null,null,null,null,null,null,null,null,null,null,null,null,null,null,null,null,"支店名",null,null,null,null,null,null,null,null,null,null,null,null,null,"本店・支店・\n本所・出張所・\n支所"]
[null,null,null,null,null,null,null,null,null,null,null,null,null,null,null,null,null,null,null,null,"支店コード"]
[null,null,null,null,null,null,null,null,null,null,null,null,null,null,null,null,null,null,null,null,"預金種目",null,null,null,null,null,null,null,null,null,null,null,null,null,"普通または当座"]
[null,null,null,null,null,null,null,null,null,null,null,null,null,null,null,null,null,null,null,null,"口座番号"]
[null,null,null,null,null,null,null,null,null,null,null,null,null,null,null,null,null,null,null,null,"フリガナ"]
[null,null,null,null,null,null,null,null,null,null,null,null,null,null,null,null,null,null,null,null,"口座名義"]

{"sheet":"別添","index":1,"n_rows":18,"n_cols":11,"rows_kept":18,"cut":false,"hidden":false,"merged":[[2,5,2,10],[2,3,3,3],[2,0,3,0],[2,1,3,1],[2,2,3,2],[2,4,3,4]]}
["（様式１４）事業所・施設別変更申請額一覧      ※この表は法人単位で作成してください（各事業所・施設ごとの数値は、様式１５の合計と一致すること）。"]
[]
["No.","事業所・施設名","施設区分","電話番号","住所","補助予定額（円）"]
[null,null,null,null,null,"現職者(人）","退職者数(人）","対象者合計(人）","慰労金合計（円）","口座振り込み手数料","慰労金＋手数料"]
[1,null,null,null,null,null,null,{"$f":"SUM(F5:G5)","v":0},{"$f":"H5*50000","v":0},null,{"$f":"SUM(I5:J5)","v":0}]
[2,null,null,null,null,null,null,{"$f":"SUM(F6:G6)","v":0},{"$f":"H6*50000","v":0},null,{"$f":"SUM(I6:J6)","v":0}]
[3,null,null,null,null,null,null,0,0,null,0]
[4,null,null,null,null,null,null,0,0,null,0]
[5,null,null,null,null,null,null,0,0,null,0]
[6,null,null,null,null,null,null,0,0,null,0]
[7,null,null,null,null,null,null,0,0,null,0]
[8,null,null,null,null,null,null,0,0,null,0]
[9,null,null,null,null,null,null,0,0,null,0]
[10,null,null,null,null,null,null,0,0,null,0]
[null,null,null,null,"合計",{"$f":"SUM(F5:F14)","v":0},{"$f":"SUM(G5:G14)","v":0},0,0,{"$f":"SUM(J5:J14)","v":0},{"$f":"SUM(K5:K14)","v":0}]
[]
["（注）行が不足する場合には適宜行を追加して差し支えないが、列の挿入は絶対に行わないこと。"]
[null,"　"]

{"sheet":"職員表","index":2,"n_rows":88,"n_cols":17,"rows_kept":88,"cut":false,"hidden":false,"merged":[[3,13,3,16],[3,0,4,0],[3,7,4,7],[3,11,4,11],[3,2,4,2],[3,3,4,3],[3,4,4,4],[3,9,3,10],[3,1,4,1],[3,12,4,12]]}
["（様式１５）慰労金受給職員表（変更申請用）　　※この表は事業所・施設単位で作成してください。複数の事業所・施設がある場合はシートをコピーし作成してください。"]
[]
[]
[null,"変更の対象に〇","氏名（漢字）","氏名（全角カナ）","生年月日（西暦）",null,null,"本人の住所","主たる勤務先","分類",null,"慰労金\n(円)","口座振り込み手数料\n（円）","確認事項"]
[null,null,null,null,null,"（確認用）","（確認用）",null,"事業所・施設の名称","施設区分","他の施設等との期間通算がある場合その施設名",null,null,"委任状の有無","他法人での慰労金の申請の有無","業務委託による\n従事者","重複\n申請者\n確認用"]
[1,null,null,null,null,null,null,null,null,null,null,null,null,null,null,null,{"$f":"IF(G6>=2,\"\",\"可\")","v":"可"}]
[{"$f":"A6+1","v":2},null,null,null,null,null,null,null,null,null,null,null,null,null,null,null,"可"]
[{"$f":"A7+1","v":3},null,null,null,null,null,null,null,null,null,null,null,null,null,null,null,"可"]
[4,null,null,null,null,null,null,null,null,null,null,null,null,null,null,null,"可"]
[5,null,null,null,null,null,null,null,null,null,null,null,null,null,null,null,"可"]
[6,null,null,null,null,null,null,null,null,null,null,null,null,null,null,null,"可"]
[7,null,null,null,null,null,null,null,null,null,null,null,null,null,null,null,"可"]
[8,null,null,null,null,null,null,null,null,null,null,null,null,null,null,null,"可"]
[9,null,null,null,null,null,null,null,null,null,null,null,null,null,null,null,"可"]
[10,null,null,null,null,null,null,null,null,null,null,null,null,null,null,null,"可"]
[11,null,null,null,null,null,null,null,null,null,null,null,null,null,null,null,"可"]
[12,null,null,null,null,null,null,null,null,null,null,null,null,null,null,null,"可"]
[13,null,null,null,null,null,null,null,null,null,null,null,null,null,null,null,"可"]
[14,null,null,null,null,null,null,null,null,null,null,null,null,null,null,null,"可"]
[15,null,null,null,null,null,null,null,null,null,null,null,null,null,null,null,"可"]
[16,null,null,null,null,null,null,null,null,null,null,null,null,null,null,null,"可"]
[17,null,null,null,null,null,null,null,null,null,null,null,null,null,null,null,"可"]
[18,null,null,null,null,null,null,null,null,null,null,null,null,null,null,null,"可"]
[19,null,null,null,null,null,null,null,null,null,null,null,null,null,null,null,"可"]
[20,null,null,null,null,null,null,null,null,null,null,null,null,null,null,null,"可"]
[21,null,null,null,null,null,null,null,null,null,null,null,null,null,null,null,"可"]
[22,null,null,null,null,null,null,null,null,null,null,null,null,null,null,null,"可"]
[23,null,null,null,null,null,null,null,null,null,null,null,null,null,null,null,"可"]
[24,null,null,null,null,null,null,null,null,null,null,null,null,null,null,null,"可"]
[25,null,null,null,null,null,null,null,null,null,null,null,null,null,null,null,"可"]
[26,null,null,null,null,null,null,null,null,null,null,null,null,null,null,null,"可"]
[27,null,null,null,null,null,null,null,null,null,null,null,null,null,null,null,"可"]
[28,null,null,null,null,null,null,null,null,null,null,null,null,null,null,null,"可"]
[29,null,null,null,null,null,null,null,null,null,null,null,null,null,null,null,"可"]
[30,null,null,null,null,null,null,null,null,null,null,null,null,null,null,null,"可"]
[31,null,null,null,null,null,null,null,null,null,null,null,null,null,null,null,"可"]
[32,null,null,null,null,null,null,null,null,null,null,null,null,null,null,null,"可"]
[33,null,null,null,null,null,null,null,null,null,null,null,null,null,null,null,"可"]
[34,null,null,null,null,null,null,null,null,null,null,null,null,null,null,null,"可"]
[35,null,null,null,null,null,null,null,null,null,null,null,null,null,null,null,"可"]
[36,null,null,null,null,null,null,null,null,null,null,null,null,null,null,null,"可"]
[37,null,null,null,null,null,null,null,null,null,null,null,null,null,null,null,"可"]
[38,null,null,null,null,null,null,null,null,null,null,null,null,null,null,null,"可"]
[39,null,null,null,null,null,null,null,null,null,null,null,null,null,null,null,"可"]
[40,null,null,null,null,null,null,null,null,null,null,null,null,null,null,null,"可"]
[41,null,null,null,null,null,null,null,null,null,null,null,null,null,null,null,"可"]
[42,null,null,null,null,null,null,null,null,null,null,null,null,null,null,null,"可"]
[43,null,null,null,null,null,null,null,null,null,null,null,null,null,null,null,"可"]
[44,null,null,null,null,null,null,null,null,null,null,null,null,null,null,null,"可"]
[45,null,null,null,null,null,null,null,null,null,null,null,null,null,null,null,"可"]
[46,null,null,null,null,null,null,null,null,null,null,null,null,null,null,null,"可"]
[47,null,null,null,null,null,null,null,null,null,null,null,null,null,null,null,"可"]
[48,null,null,null,null,null,null,null,null,null,null,null,null,null,null,null,"可"]
[49,null,null,null,null,null,null,null,null,null,null,null,null,null,null,null,"可"]
[50,null,null,null,null,null,null,null,null,null,null,null,null,null,null,null,"可"]
[51,null,null,null,null,null,null,null,null,null,null,null,null,null,null,null,"可"]
[52,null,null,null,null,null,null,null,null,null,null,null,null,null,null,null,"可"]
[53,null,null,null,null,null,null,null,null,null,null,null,null,null,null,null,"可"]
[54,null,null,null,null,null,null,null,null,null,null,null,null,null,null,null,"可"]
[55,null,null,null,null,null,null,null,null,null,null,null,null,null,null,null,"可"]
[56,null,null,null,null,null,null,null,null,null,null,null,null,null,null,null,"可"]
[57,null,null,null,null,null,null,null,null,null,null,null,null,null,null,null,"可"]
[58,null,null,null,null,null,null,null,null,null,null,null,null,null,null,null,"可"]
[59,null,null,null,null,null,null,null,null,null,null,null,null,null,null,null,"可"]
[60,null,null,null,null,null,null,null,null,null,null,null,null,null,null,null,"可"]
[61,null,null,null,null,null,null,null,null,null,null,null,null,null,null,null,"可"]
[62,null,null,null,null,null,null,null,null,null,null,null,null,null,null,null,"可"]
[63,null,null,null,null,null,null,null,null,null,null,null,null,null,null,null,"可"]
[64,null,null,null,null,null,null,null,null,null,null,null,null,null,null,null,"可"]
[65,null,null,null,null,null,null,null,null,null,null,null,null,null,null,null,{"$f":"IF(G70>=2,\"\",\"可\")","v":"可"}]
[66,null,null,null,null,null,null,null,null,null,null,null,null,null,null,null,"可"]
[67,null,null,null,null,null,null,null,null,null,null,null,null,null,null,null,"可"]
[68,null,null,null,null,null,null,null,null,null,null,null,null,null,null,null,"可"]
[69,null,null,null,null,null,null,null,null,null,null,null,null,null,null,null,"可"]
[70,null,null,null,null,null,null,null,null,null,null,null,null,null,null,null,"可"]
[71,null,null,null,null,null,null,null,null,null,null,null,null,null,null,null,"可"]
[72,null,null,null,null,null,null,null,null,null,null,null,null,null,null,null,"可"]
[73,null,null,null,null,null,null,null,null,null,null,null,null,null,null,null,"可"]
[74,null,null,null,null,null,null,null,null,null,null,null,null,null,null,null,"可"]
[75,null,null,null,null,null,null,null,null,null,null,null,null,null,null,null,"可"]
[76,null,null,null,null,null,null,null,null,null,null,null,null,null,null,null,"可"]
[77,null,null,null,null,null,null,null,null,null,null,null,null,null,null,null,"可"]
[78,null,null,null,null,null,null,null,null,null,null,null,null,null,null,null,"可"]
[79,null,null,null,null,null,null,null,null,null,null,null,null,null,null,null,"可"]
[80,null,null,null,null,null,null,null,null,null,null,null,null,null,null,null,"可"]
[81,null,null,null,null,null,null,null,null,null,null,null,null,null,null,null,"可"]
[null,"合計",null,null,null,null,null,null,null,null,null,{"$f":"SUM(L6:L86)","v":0},{"$f":"SUM(M6:M86)","v":0}]
["（注）行が不足する場合には適宜行を追加して差し支えないが、列の挿入は絶対に行わないこと。"]

{"sheet":"申請書 (記載例)","index":3,"n_rows":51,"n_cols":39,"rows_kept":51,"cut":false,"hidden":false,"merged":[[40,19,41,30],[41,2,41,14],[42,2,50,14],[42,20,43,27],[42,28,43,33],[46,20,46,27],[46,28,46,37],[47,20,47,26],[47,28,47,33],[47,34,47,37],[48,20,48,26],[48,28,48,37],[49,20,49,27],[49,28,49,37],[50,28,50,37],[42,34,43,37],[44,20,44,27],[44,28,44,37],[45,20,45,26],[45,28,45,33],[45,34,45,37],[36,20,36,26],[36,28,36,37],[37,20,38,22],[37,24,37,27],[37,28,37,37],[38,24,38,27],[38,28,38,37],[31,19,32,29],[33,20,34,27],[33,29,33,37],[34,28,34,37],[35,20,35,26],[35,28,35,37],[22,4,22,12],[22,13,22,19],[22,20,22,26],[22,27,22,33],[23,4,23,12],[23,13,23,19],[23,20,23,26],[23,27,23,33],[20,4,20,12],[20,13,20,19],[20,20,20,26],[20,27,20,33],[21,4,21,12],[21,13,21,19],[21,20,21,26],[21,27,21,33],[18,4,18,12],[18,13,18,19],[18,20,18,26],[18,27,18,33],[19,4,19,12],[19,13,19,19],[19,20,19,26],[19,27,19,33],[17,4,17,22],[2,29,2,30],[2,32,2,33],[2,35,2,36],[4,0,4,9],[6,22,6,36],[7,22,7,36],[8,22,8,36],[10,0,10,38],[12,1,12,37],[15,1,15,9],[15,10,15,17]]}
[null,null,null,null,null,null,null,null,null,null,null,null,null,null,null,null,null,null,null,null,null,null,null,null,null,null,null,null,null,null,null,null,null,null,null,null,null,null,"（様式１３）"]
[]
[null,null,null,null,null,null,null,null,null,null,null,null,null,null,null,null,null,null,null,null,null,null,null,null,null,null,null,null,"　　令和",2,null,"年",12,null,"月",20,null,"日"]
[]
["福井県知事　杉本　達治",null,null,null,null,null,null,null,null,null,"様"]
[]
[null,null,null,null,null,null,null,null,null,null,null,null,null,null,null,null,null,null,null,null,null,"（所在地）","福井市大手丁目〇〇―〇"]
[null,null,null,null,null,null,null,null,null,null,null,null,null,null,null,null,null,null,null,null,null,"（法人名）","社会福祉法人日本海"]
[null,null,null,null,null,null,null,null,null,null,null,null,null,null,null,null,null,null,null,null,null,"（役職・代表者名）","理事長　福田　福夫",null,null,null,null,null,null,null,null,null,null,null,null,null,null,"印"]
[]
["令和２年度福井県新型コロナウイルス感染症緊急包括支援事業補助金\n（児童福祉施設等従事者への慰労金支給事業）変更交付申請書"]
[]
[null,"　令和２年１１月２０日付け福井県指令子第９９９号で交付決定を受けた令和２年度福井県新型コロナウイルス感染症緊急包括支援事業（児童福祉施設等従事者への慰労金支給事業）について、下記のとおり変更したいので、関係書類を添えて申請します。"]
[]
[]
[null,"　　変更後申請額　：　",null,null,null,null,null,null,null,null,958900,null,null,null,null,null,null,null,"円"]
[]
[null,"（内訳）"]
[null,null,null,null,null,null,null,null,null,null,null,null,null,"変更前(A)",null,null,null,null,null,null,"変更後(B)",null,null,null,null,null,null,"(B)-(A)"]
[null,null,null,null,"対象者のうち、現職者数",null,null,null,null,null,null,null,null,16,null,null,null,null,null,null,{"$f":"'別添 (記載例)'!F15","v":17},null,null,null,null,null,null,{"$f":"U20-N20","v":1}]
[null,null,null,null,"対象者のうち、退職者数",null,null,null,null,null,null,null,null,2,null,null,null,null,null,null,{"$f":"'別添 (記載例)'!G15","v":2},null,null,null,null,null,null,{"$f":"U21-N21","v":0}]
[null,null,null,null,"対象者合計",null,null,null,null,null,null,null,null,18,null,null,null,null,null,null,{"$f":"'別添 (記載例)'!H15","v":19},null,null,null,null,null,null,1]
[null,null,null,null,"支給額合計",null,null,null,null,null,null,null,null,900000,null,null,null,null,null,null,{"$f":"'別添 (記載例)'!I15","v":950000},null,null,null,null,null,null,50000]
[null,null,null,null,"口座振り込み手数料",null,null,null,null,null,null,null,null,8330,null,null,null,null,null,null,{"$f":"'別添 (記載例)'!J15","v":8900},null,null,null,null,null,null,570]
[]
[null,"（添付書類）"]
[null,"１　（様式１４）事業所・施設別変更申請額一覧"]
[null,"２　（様式１５）慰労金受給職員表（変更申請用）"]
[null,"３　（様式４）誓約書（法人単位）"]
[]
[]
[null,null,null,null,null,null,null,null,null,null,null,null,null,null,null,null,null,null,null,"【申請内容に関する連絡先】"]
[]
[null,null,null,null,null,null,null,null,null,null,null,null,null,null,null,null,null,null,null,null," 申請法人住所",null,null,null,null,null,null,null,"〒","910-〇〇〇〇"]
[null,null,null,null,null,null,null,null,null,null,null,null,null,null,null,null,null,null,null,null,null,null,null,null,null,null,null,null,"福井市大手丁目〇〇―〇"]
[null,null,null,null,null,null,null,null,null,null,null,null,null,null,null,null,null,null,null,null," 部署名",null,null,null,null,null,null,null,"社会福祉法人日本海　法人本部"]
[null,null,null,null,null,null,null,null,null,null,null,null,null,null,null,null,null,null,null,null," 担当者氏名",null,null,null,null,null,null,null,"福田　福夫"]
[null,null,null,null,null,null,null,null,null,null,null,null,null,null,null,null,null,null,null,null," 連絡先",null,null,null,"電話番号",null,null,null,"0776-20-〇〇〇〇"]
[null,null,null,null,null,null,null,null,null,null,null,null,null,null,null,null,null,null,null,null,null,null,null,null,"e-mail",null,null,null,"fukuko-fuku@fukui,lg.jp"]
[]
[null,null,null,null,null,null,null,null,null,null,null,null,null,null,null,null,null,null,null,"【振込先金融機関口座記入欄】"]
[null,null,"受付欄（記入不要）"]
[null,null,null,null,null,null,null,null,null,null,null,null,null,null,null,null,null,null,null,null,"金融機関名",null,null,null,null,null,null,null,"坂井",null,null,null,null,null,"銀行・金庫・\n組合・農協・\n漁連"]
[]
[null,null,null,null,null,null,null,null,null,null,null,null,null,null,null,null,null,null,null,null,"金融機関コード",null,null,null,null,null,null,null,999]
[null,null,null,null,null,null,null,null,null,null,null,null,null,null,null,null,null,null,null,null,"支店名",null,null,null,null,null,null,null,"あわら",null,null,null,null,null,"本店・支店・\n本所・出張所・\n支所"]
[null,null,null,null,null,null,null,null,null,null,null,null,null,null,null,null,null,null,null,null,"支店コード",null,null,null,null,null,null,null,8888]
[null,null,null,null,null,null,null,null,null,null,null,null,null,null,null,null,null,null,null,null,"預金種目",null,null,null,null,null,null,null,"普通",null,null,null,null,null,"普通または当座"]
[null,null,null,null,null,null,null,null,null,null,null,null,null,null,null,null,null,null,null,null,"口座番号",null,null,null,null,null,null,null,9999999]
[null,null,null,null,null,null,null,null,null,null,null,null,null,null,null,null,null,null,null,null,"フリガナ",null,null,null,null,null,null,null,"シャカイフクシホウジンニホンカイ"]
[null,null,null,null,null,null,null,null,null,null,null,null,null,null,null,null,null,null,null,null,"口座名義",null,null,null,null,null,null,null,"社会福祉法人日本海法"]

{"sheet":"別添 (記載例)","index":4,"n_rows":18,"n_cols":11,"rows_kept":18,"cut":false,"hidden":false,"merged":[[2,5,2,10],[2,0,3,0],[2,1,3,1],[2,2,3,2],[2,3,3,3],[2,4,3,4]]}
["（様式１４）事業所・施設別変更申請額一覧      ※この表は法人単位で作成してください（各事業所・施設ごとの数値は、様式１５の合計と一致すること）。"]
[]
["No.","事業所・施設名","施設区分","電話番号","住所","補助予定額（円）"]
[null,null,null,null,null,"現職者(人）","退職者数(人）","対象者合計(人）","慰労金合計（円）","口座振り込み手数料","慰労金＋手数料"]
[1,"丹南保育園","認可保育所","0778-99-9999","越前市〇〇町1-1",9,1,{"$f":"SUM(F5:G5)","v":10},{"$f":"H5*50000","v":500000},4000,{"$f":"SUM(I5:J5)","v":504000}]
[2,"二州こども園","認定こども園","0770-99-9999","美浜町〇〇1-2",6,0,{"$f":"SUM(F6:G6)","v":6},{"$f":"H6*50000","v":300000},3300,{"$f":"SUM(I6:J6)","v":303300}]
[3,"奥越児童クラブ","放課後児童クラブ","0779-99-9999","勝山市〇〇町1-3",2,1,3,150000,1600,151600]
[4,null,null,null,null,null,null,{"$f":"SUM(F8:G8)","v":0},{"$f":"H8*50000","v":0},null,{"$f":"SUM(I8:J8)","v":0}]
[5,null,null,null,null,null,null,0,0,null,0]
[6,null,null,null,null,null,null,0,0,null,0]
[7,null,null,null,null,null,null,0,0,null,0]
[8,null,null,null,null,null,null,0,0,null,0]
[9,null,null,null,null,null,null,0,0,null,0]
[10,null,null,null,null,null,null,0,0,null,0]
[null,null,null,null,"合計",{"$f":"SUM(F5:F14)","v":17},{"$f":"SUM(G5:G14)","v":2},19,950000,8900,958900]
[]
["（注）行が不足する場合には適宜行を追加して差し支えないが、列の挿入は絶対に行わないこと。"]
[null,"　"]

{"sheet":"職員表 (記載例)","index":5,"n_rows":88,"n_cols":17,"rows_kept":88,"cut":false,"hidden":false,"merged":[[3,9,3,10],[3,11,4,11],[3,12,4,12],[3,13,3,16],[3,0,4,0],[3,1,4,1],[3,2,4,2],[3,3,4,3],[3,4,4,4],[3,7,4,7]]}
["（様式１５）慰労金受給職員表（変更申請用）　　※この表は事業所・施設単位で作成してください。複数の事業所・施設がある場合はシートをコピーし作成してください。"]
[]
[]
[null,"変更の対象に〇","氏名（漢字）","氏名（全角カナ）","生年月日（西暦）",null,null,"本人の住所","主たる勤務先","分類",null,"慰労金\n(円)","口座振り込み手数料\n（円）","確認事項"]
[null,null,null,null,null,"（確認用）","（確認用）",null,"事業所・施設の名称","施設区分","他の施設等との期間通算がある場合その施設名",null,null,"委任状の有無","他法人での慰労金の申請の有無","業務委託による\n従事者","重複\n申請者\n確認用"]
[1,null,"〇〇　〇〇","〇〇〇〇　〇〇","1978-01-01",null,null,"〇〇市〇〇１丁目1-1","丹南保育園","認可保育所",null,50000,330,"あり","なし",null,{"$f":"IF(F6>=2,\"\",\"可\")","v":"可"}]
[{"$f":"A6+1","v":2},null,"〇〇　〇〇","〇〇〇〇　〇〇","1999-06-06",null,null,"〇〇町〇〇9-9-8","丹南保育園","認可保育所",null,50000,560,"あり","なし",null,"可"]
[{"$f":"A7+1","v":3},null,"〇〇　〇〇","〇〇〇〇　〇〇","1988-02-06",null,null,"〇〇市〇〇４丁目2","丹南保育園","認可保育所",null,50000,330,"あり","なし",null,"可"]
[4,null,"〇〇　〇〇","〇〇〇〇　〇〇","2002-05-03",null,null,"〇〇市〇〇１丁目1-4","丹南保育園","認可保育所","二州こども園",50000,560,"あり","なし",null,"可"]
[5,null,"〇〇　〇〇","〇〇〇〇　〇〇","2003-02-25",null,null,"〇〇市〇〇２丁目1-5","丹南保育園","認可保育所",null,50000,330,"あり","なし",null,"可"]
[6,null,"〇〇　〇〇","〇〇〇〇　〇〇","1988-10-10",null,null,"〇〇町〇〇1-6","丹南保育園","認可保育所",null,50000,330,"あり","なし",null,"可"]
[7,null,"〇〇　〇〇","〇〇〇〇　〇〇","2004-05-03",null,null,"〇〇市〇〇３丁目1-7","丹南保育園","認可保育所",null,50000,330,"あり","なし",null,"可"]
[8,null,"〇〇　〇〇","〇〇〇〇　〇〇","1990-01-08",null,null,"〇〇市〇〇１丁目1-8","丹南保育園","認可保育所",null,50000,330,"あり","なし",null,"可"]
[9,null,"〇〇　〇〇","〇〇〇〇　〇〇","2000-01-09",null,null,"〇〇市〇〇２丁目1-9","丹南保育園","認可保育所",null,50000,330,"あり","なし","該当","可"]
[10,"〇","〇〇　〇〇","〇〇〇〇　〇〇","2000-01-10",null,null,"〇〇市〇〇２丁目1-9","丹南保育園","認可保育所",null,50000,570,"あり","なし",null,{"$f":"IF(F15>=2,\"\",\"可\")","v":"可"}]
[11,null,null,null,null,null,null,null,null,null,null,null,null,null,null,null,{"$f":"IF(G16>=2,\"\",\"可\")","v":"可"}]
[12,null,null,null,null,null,null,null,null,null,null,null,null,null,null,null,"可"]
[13,null,null,null,null,null,null,null,null,null,null,null,null,null,null,null,"可"]
[14,null,null,null,null,null,null,null,null,null,null,null,null,null,null,null,"可"]
[15,null,null,null,null,null,null,null,null,null,null,null,null,null,null,null,"可"]
[16,null,null,null,null,null,null,null,null,null,null,null,null,null,null,null,"可"]
[17,null,null,null,null,null,null,null,null,null,null,null,null,null,null,null,"可"]
[18,null,null,null,null,null,null,null,null,null,null,null,null,null,null,null,"可"]
[19,null,null,null,null,null,null,null,null,null,null,null,null,null,null,null,"可"]
[20,null,null,null,null,null,null,null,null,null,null,null,null,null,null,null,"可"]
[21,null,null,null,null,null,null,null,null,null,null,null,null,null,null,null,"可"]
[22,null,null,null,null,null,null,null,null,null,null,null,null,null,null,null,"可"]
[23,null,null,null,null,null,null,null,null,null,null,null,null,null,null,null,"可"]
[24,null,null,null,null,null,null,null,null,null,null,null,null,null,null,null,"可"]
[25,null,null,null,null,null,null,null,null,null,null,null,null,null,null,null,"可"]
[26,null,null,null,null,null,null,null,null,null,null,null,null,null,null,null,"可"]
[27,null,null,null,null,null,null,null,null,null,null,null,null,null,null,null,"可"]
[28,null,null,null,null,null,null,null,null,null,null,null,null,null,null,null,"可"]
[29,null,null,null,null,null,null,null,null,null,null,null,null,null,null,null,"可"]
[30,null,null,null,null,null,null,null,null,null,null,null,null,null,null,null,"可"]
[31,null,null,null,null,null,null,null,null,null,null,null,null,null,null,null,"可"]
[32,null,null,null,null,null,null,null,null,null,null,null,null,null,null,null,"可"]
[33,null,null,null,null,null,null,null,null,null,null,null,null,null,null,null,"可"]
[34,null,null,null,null,null,null,null,null,null,null,null,null,null,null,null,"可"]
[35,null,null,null,null,null,null,null,null,null,null,null,null,null,null,null,"可"]
[36,null,null,null,null,null,null,null,null,null,null,null,null,null,null,null,"可"]
[37,null,null,null,null,null,null,null,null,null,null,null,null,null,null,null,"可"]
[38,null,null,null,null,null,null,null,null,null,null,null,null,null,null,null,"可"]
[39,null,null,null,null,null,null,null,null,null,null,null,null,null,null,null,"可"]
[40,null,null,null,null,null,null,null,null,null,null,null,null,null,null,null,"可"]
[41,null,null,null,null,null,null,null,null,null,null,null,null,null,null,null,"可"]
[42,null,null,null,null,null,null,null,null,null,null,null,null,null,null,null,"可"]
[43,null,null,null,null,null,null,null,null,null,null,null,null,null,null,null,"可"]
[44,null,null,null,null,null,null,null,null,null,null,null,null,null,null,null,"可"]
[45,null,null,null,null,null,null,null,null,null,null,null,null,null,null,null,"可"]
[46,null,null,null,null,null,null,null,null,null,null,null,null,null,null,null,"可"]
[47,null,null,null,null,null,null,null,null,null,null,null,null,null,null,null,"可"]
[48,null,null,null,null,null,null,null,null,null,null,null,null,null,null,null,"可"]
[49,null,null,null,null,null,null,null,null,null,null,null,null,null,null,null,"可"]
[50,null,null,null,null,null,null,null,null,null,null,null,null,null,null,null,"可"]
[51,null,null,null,null,null,null,null,null,null,null,null,null,null,null,null,"可"]
[52,null,null,null,null,null,null,null,null,null,null,null,null,null,null,null,"可"]
[53,null,null,null,null,null,null,null,null,null,null,null,null,null,null,null,"可"]
[54,null,null,null,null,null,null,null,null,null,null,null,null,null,null,null,"可"]
[55,null,null,null,null,null,null,null,null,null,null,null,null,null,null,null,"可"]
[56,null,null,null,null,null,null,null,null,null,null,null,null,null,null,null,"可"]
[57,null,null,null,null,null,null,null,null,null,null,null,null,null,null,null,"可"]
[58,null,null,null,null,null,null,null,null,null,null,null,null,null,null,null,"可"]
[59,null,null,null,null,null,null,null,null,null,null,null,null,null,null,null,"可"]
[60,null,null,null,null,null,null,null,null,null,null,null,null,null,null,null,"可"]
[61,null,null,null,null,null,null,null,null,null,null,null,null,null,null,null,"可"]
[62,null,null,null,null,null,null,null,null,null,null,null,null,null,null,null,"可"]
[63,null,null,null,null,null,null,null,null,null,null,null,null,null,null,null,"可"]
[64,null,null,null,null,null,null,null,null,null,null,null,null,null,null,null,"可"]
[65,null,null,null,null,null,null,null,null,null,null,null,null,null,null,null,{"$f":"IF(G70>=2,\"\",\"可\")","v":"可"}]
[66,null,null,null,null,null,null,null,null,null,null,null,null,null,null,null,"可"]
[{"$f":"A71+1","v":67},null,null,null,null,null,null,null,null,null,null,null,null,null,null,null,"可"]
[68,null,null,null,null,null,null,null,null,null,null,null,null,null,null,null,"可"]
[69,null,null,null,null,null,null,null,null,null,null,null,null,null,null,null,"可"]
[70,null,null,null,null,null,null,null,null,null,null,null,null,null,null,null,"可"]
[71,null,null,null,null,null,null,null,null,null,null,null,null,null,null,null,"可"]
[72,null,null,null,null,null,null,null,null,null,null,null,null,null,null,null,"可"]
[73,null,null,null,null,null,null,null,null,null,null,null,null,null,null,null,"可"]
[74,null,null,null,null,null,null,null,null,null,null,null,null,null,null,null,"可"]
[75,null,null,null,null,null,null,null,null,null,null,null,null,null,null,null,"可"]
[76,null,null,null,null,null,null,null,null,null,null,null,null,null,null,null,"可"]
[77,null,null,null,null,null,null,null,null,null,null,null,null,null,null,null,"可"]
[78,null,null,null,null,null,null,null,null,null,null,null,null,null,null,null,"可"]
[79,null,null,null,null,null,null,null,null,null,null,null,null,null,null,null,"可"]
[80,null,null,null,null,null,null,null,null,null,null,null,null,null,null,null,"可"]
[81,null,null,null,null,null,null,null,null,null,null,null,null,null,null,null,"可"]
[null,"合計",null,null,null,null,null,null,null,null,null,{"$f":"SUM(L6:L86)","v":500000},{"$f":"SUM(M6:M86)","v":4000}]
["（注）行が不足する場合には適宜行を追加して差し支えないが、列の挿入は絶対に行わないこと。"]

{"sheet":"計算用","index":6,"n_rows":115,"n_cols":12,"rows_kept":115,"cut":false,"hidden":true,"merged":[]}
[null,"（１）①　",null,null,null,"（２）②",null,null,null,null,null,"※本シートは絶対に編集しないこと。"]
[null,"共通",null,"単価","多機能型居室","共通"]
["療養介護",2374,"/事業所",null,null,200,"/事業所"]
["生活介護",757,"/事業所",null,null,200,"/事業所"]
["自立訓練（機能訓練）",346,"/事業所",null,null,200,"/事業所"]
["自立訓練（生活訓練）",273,"/事業所",null,null,200,"/事業所"]
["宿泊型自立訓練",273,"/事業所",null,3000,200,"/事業所"]
["就労移行支援",265,"/事業所",null,null,200,"/事業所"]
["就労移行支援（養成施設）",265,"/事業所",null,null,200,"/事業所"]
["就労継続支援Ａ型",335,"/事業所",null,null,200,"/事業所"]
["就労継続支援Ｂ型",353,"/事業所",null,null,200,"/事業所"]
["就労定着支援",52,"/事業所",null,null,200,"/事業所"]
["自立生活援助",27,"/事業所",null,null,200,"/事業所"]
["児童発達支援",380,"/事業所",null,null,200,"/事業所"]
["医療型児童発達支援",240,"/事業所",null,null,200,"/事業所"]
["放課後等デイサービス",360,"/事業所",null,null,200,"/事業所"]
["短期入所",204,"/事業所",null,3000,200,"/事業所"]
["施設入所支援",1215,"/施設",null,3000]
["共同生活援助（介護サービス包括型）",402,"/事業所",null,3000]
["共同生活援助（日中サービス支援型）",358,"/事業所",null,3000]
["共同生活援助（外部サービス利用型）",180,"/事業所",null,3000]
["福祉型障害児入所施設",1182,"/施設"]
["医療型障害児入所施設",635,"/施設"]
["居宅介護",115,"/事業所",null,null,200,"/事業所"]
["重度訪問介護",188,"/事業所",null,null,200,"/事業所"]
["同行援護",65,"/事業所",null,null,200,"/事業所"]
["行動援護",115,"/事業所",null,null,200,"/事業所"]
["居宅訪問型児童発達支援",46,"/事業所",null,null,200,"/事業所"]
["保育所等訪問支援",38,"/事業所",null,null,200,"/事業所"]
["計画相談支援",60,"/事業所",null,null,200,"/事業所"]
["地域移行支援",44,"/事業所",null,null,200,"/事業所"]
["地域定着支援",46,"/事業所"]
["障害児相談支援",44,"/事業所",null,null,200,"/事業所"]
["重度障害者包括支援"]
["地域活動支援センター"]
["日中一時支援"]
["盲人ホーム"]
["福祉ホーム"]
["移動支援事業"]
["訪問入浴サービス"]
["障害者相談支援事業"]
["基幹相談支援"]
["盲ろう者向け通訳・介助員派遣事業"]
[]
["①"]
["②"]
["③"]
["④"]
[]
["施設区分"]
["陽性者(濃厚接触者)発生施設","訪問系で陽性者等に1日以上対応又は訪問系以外で1日以上勤務","訪問系で陽性者等への対応はないが対象期間に10日以上勤務","対象期間の勤務が9日以下"]
["その他の施設","対象期間に10日以上勤務","対象期間の勤務が9日以下"]
[]
[]
["慰労金単価"]
[{"$f":"A51&B51","v":"陽性者(濃厚接触者)発生施設訪問系で陽性者等に1日以上対応又は訪問系以外で1日以上勤務"},20]
[{"$f":"A51&C51","v":"陽性者(濃厚接触者)発生施設訪問系で陽性者等への対応はないが対象期間に10日以上勤務"},5]
[{"$f":"A51&D51","v":"陽性者(濃厚接触者)発生施設対象期間の勤務が9日以下"},0]
[{"$f":"A52&B52","v":"その他の施設対象期間に10日以上勤務"},5]
[{"$f":"A52&C52","v":"その他の施設対象期間の勤務が9日以下"},0]
[]
[]
[]
[]
["なし"]
["あり"]
[]
[]
["北海道 "]
["青森県 "]
["岩手県 "]
["宮城県 "]
["秋田県 "]
["山形県 "]
["福島県 "]
["茨城県 "]
["栃木県 "]
["群馬県 "]
["埼玉県 "]
["千葉県 "]
["東京都 "]
["神奈川県 "]
["新潟県 "]
["富山県 "]
["石川県 "]
["福井県 "]
["山梨県 "]
["長野県 "]
["岐阜県"]
["静岡県"]
["愛知県"]
["三重県"]
["滋賀県"]
["京都府"]
["大阪府"]
["兵庫県"]
["奈良県"]
["和歌山県"]
["鳥取県"]
["島根県"]
["岡山県"]
["広島県"]
["山口県"]
["徳島県"]
["香川県"]
["愛媛県"]
["高知県"]
["福岡県"]
["佐賀県"]
["長崎県"]
["熊本県"]
["大分県"]
["宮崎県"]
["鹿児島県"]
["沖縄県"]